[Event "January 9 Early 2024"]
[Site "https://www.chess.com"]
[Date "2024.01.11"]
[Round "2"]
[White "Girsh, Daniel"]
[Black "Anton Guijarro, David"]
[Result "0-1"]
[Board "136"]
[TimeControl "180+1"]
[WhiteFideId "30949190"]
[BlackFideId "2285525"]
[WhiteElo "2640"]
[BlackElo "2999"]
[WhiteTeam "USA"]
[BlackTeam "ESP"]
[WhiteClock "0:00:31"]
[BlackClock "0:00:20"]

1. e4 {[%clk 0:03:00]}  c5 {[%clk 0:02:58]} 2. Nf3 {[%clk 0:03:01]}  Nc6 {[%clk 0:02:58]} 3. d4 {[%clk 0:03:02]}  cxd4 {[%clk 0:02:58]} 4. Nxd4 {[%clk 0:03:02]}  e5 {[%clk 0:02:59]} 5. Nb5 {[%clk 0:03:01]}  d6 {[%clk 0:03:00]} 6. Be2 {[%clk 0:02:59]}  Be6 {[%clk 0:02:58]} 7. O-O {[%clk 0:02:58]}  Be7 {[%clk 0:02:57]} 8. Be3 {[%clk 0:02:57]}  a6 {[%clk 0:02:56]} 9. N5c3 {[%clk 0:02:57]}  Nf6 {[%clk 0:02:56]} 10. Nd2 {[%clk 0:02:55]}  b5 {[%clk 0:02:52]} 11. a3 {[%clk 0:02:55]}  h6 {[%clk 0:02:51]} 12. Kh1 {[%clk 0:02:53]}  O-O {[%clk 0:02:50]} 13. f4 {[%clk 0:02:52]}  exf4 {[%clk 0:02:49]} 14. Bxf4 {[%clk 0:02:52]}  Ne5 {[%clk 0:02:46]} 15. Nf3 {[%clk 0:02:51]}  Qc7 {[%clk 0:02:44]} 16. Qd4 {[%clk 0:02:43]}  Nfd7 {[%clk 0:02:40]} 17. Rad1 {[%clk 0:02:38]}  Rac8 {[%clk 0:02:37]} 18. h3 {[%clk 0:02:16]}  Qb7 {[%clk 0:02:26]} 19. Bd3 {[%clk 0:02:13]}  Rfd8 {[%clk 0:02:11]} 20. Nd5 {[%clk 0:02:04]}  Bxd5 {[%clk 0:02:09]} 21. exd5 {[%clk 0:02:05]}  Bf6 {[%clk 0:02:03]} 22. Qf2 {[%clk 0:01:54]}  Nxd3 {[%clk 0:01:58]} 23. Rxd3 {[%clk 0:01:54]}  Nc5 {[%clk 0:01:55]} 24. Rdd1 {[%clk 0:01:42]}  Bxb2 {[%clk 0:01:53]} 25. Rfe1 {[%clk 0:01:37]}  Bf6 {[%clk 0:01:32]} 26. Qg3 {[%clk 0:01:35]}  Re8 {[%clk 0:01:25]} 27. Qg4 {[%clk 0:01:04]}  Rxe1+ {[%clk 0:01:15]} 28. Rxe1 {[%clk 0:01:03]}  Rd8 {[%clk 0:01:13]} 29. Qf5 {[%clk 0:00:53]}  Qd7 {[%clk 0:01:06]} 30. Qh5 {[%clk 0:00:51]}  Na4 {[%clk 0:00:33]} 31. Nh2 {[%clk 0:00:46]}  Re8 {[%clk 0:00:31]} 32. Rf1 {[%clk 0:00:42]}  Be5 {[%clk 0:00:27]} 33. Bxh6 {[%clk 0:00:41]}  gxh6 {[%clk 0:00:25]} 34. Ng4 {[%clk 0:00:41]}  Bg7 {[%clk 0:00:25]} 35. Nxh6+ {[%clk 0:00:40]}  Bxh6 {[%clk 0:00:25]} 36. Qxh6 {[%clk 0:00:40]}  Re5 {[%clk 0:00:25]} 37. Rf4 {[%clk 0:00:33]}  f5 {[%clk 0:00:19]} 38. Rh4 {[%clk 0:00:32]}  Qg7 {[%clk 0:00:18]} 39. Qxd6 {[%clk 0:00:31]}  Re1+ {[%clk 0:00:18]} 40. Kh2 {[%clk 0:00:31]}  Qe5+ {[%clk 0:00:19]} 41. Qxe5 {[%clk 0:00:31]}  Rxe5 {[%clk 0:00:20]} 42. Re4 {[%clk 0:00:31]} 0-1

[Event "January 9 Early 2024"]
[Site "https://www.chess.com"]
[Date "2024.01.11"]
[Round "2"]
[White "Dominguez Perez, Leinier"]
[Black "Arslanov, Shamil"]
[Result "1-0"]
[Board "137"]
[TimeControl "180+1"]
[WhiteFideId "3503240"]
[BlackFideId "4192826"]
[WhiteElo "2978"]
[BlackElo "2633"]
[WhiteTeam "USA"]
[BlackTeam "RUS"]
[WhiteClock "0:00:34"]
[BlackClock "0:00:11"]

1. e4 {[%clk 0:03:00]}  d6 {[%clk 0:02:59]} 2. d4 {[%clk 0:03:00]}  e5 {[%clk 0:03:00]} 3. Nf3 {[%clk 0:02:59]}  Bg4 {[%clk 0:03:00]} 4. dxe5 {[%clk 0:02:58]}  Nc6 {[%clk 0:03:00]} 5. Bb5 {[%clk 0:02:56]}  Qd7 {[%clk 0:02:57]} 6. h3 {[%clk 0:02:51]}  Bh5 {[%clk 0:02:57]} 7. Nc3 {[%clk 0:02:47]}  O-O-O {[%clk 0:02:57]} 8. Be3 {[%clk 0:02:27]}  a6 {[%clk 0:02:55]} 9. Ba4 {[%clk 0:02:21]}  Qe8 {[%clk 0:02:49]} 10. Bxc6 {[%clk 0:01:56]}  Qxc6 {[%clk 0:02:46]} 11. Qd4 {[%clk 0:01:41]}  Bxf3 {[%clk 0:02:37]} 12. gxf3 {[%clk 0:01:39]}  dxe5 {[%clk 0:02:37]} 13. Qa7 {[%clk 0:01:35]}  Nf6 {[%clk 0:02:07]} 14. a3 {[%clk 0:01:34]}  Qc4 {[%clk 0:01:42]} 15. Qa8+ {[%clk 0:01:26]}  Kd7 {[%clk 0:01:34]} 16. Qxb7 {[%clk 0:01:27]}  Bd6 {[%clk 0:01:25]} 17. Qb3 {[%clk 0:01:24]}  Qxb3 {[%clk 0:01:24]} 18. cxb3 {[%clk 0:01:25]}  Rb8 {[%clk 0:00:55]} 19. b4 {[%clk 0:01:24]}  Ke6 {[%clk 0:00:56]} 20. O-O-O {[%clk 0:01:18]}  h6 {[%clk 0:00:41]} 21. Rd3 {[%clk 0:01:11]}  g5 {[%clk 0:00:41]} 22. Na4 {[%clk 0:00:55]}  Rhg8 {[%clk 0:00:37]} 23. Rhd1 {[%clk 0:00:50]}  h5 {[%clk 0:00:34]} 24. Bc5 {[%clk 0:00:50]}  Ne8 {[%clk 0:00:29]} 25. Rc3 {[%clk 0:00:44]}  g4 {[%clk 0:00:27]} 26. fxg4 {[%clk 0:00:41]}  hxg4 {[%clk 0:00:28]} 27. hxg4 {[%clk 0:00:40]}  Rxg4 {[%clk 0:00:28]} 28. f3 {[%clk 0:00:41]}  Rg2 {[%clk 0:00:27]} 29. Bxd6 {[%clk 0:00:41]}  cxd6 {[%clk 0:00:26]} 30. Rc6 {[%clk 0:00:41]}  Rf2 {[%clk 0:00:17]} 31. Rd3 {[%clk 0:00:40]}  f5 {[%clk 0:00:13]} 32. Rxa6 {[%clk 0:00:37]}  fxe4 {[%clk 0:00:13]} 33. fxe4 {[%clk 0:00:38]}  Rc8+ {[%clk 0:00:13]} 34. Kb1 {[%clk 0:00:37]}  Re2 {[%clk 0:00:13]} 35. Nc3 {[%clk 0:00:34]}  Rc4 {[%clk 0:00:11]} 36. Nxe2 {[%clk 0:00:34]} 1-0

[Event "January 9 Early 2024"]
[Site "https://www.chess.com"]
[Date "2024.01.11"]
[Round "2"]
[White "Sasvatha A"]
[Black "Novik, Maxim"]
[Result "0-1"]
[Board "139"]
[TimeControl "180+1"]
[WhiteFideId "45010862"]
[BlackFideId "4102924"]
[WhiteElo "2171"]
[BlackElo "2467"]
[WhiteTeam "IND"]
[BlackTeam "LTU"]
[WhiteClock "0:00:16"]
[BlackClock "0:01:30"]

1. d4 {[%clk 0:02:59]}  Nf6 {[%clk 0:02:55]} 2. b3 {[%clk 0:02:55]}  g6 {[%clk 0:02:54]} 3. Bb2 {[%clk 0:02:55]}  Bg7 {[%clk 0:02:54]} 4. Nc3 {[%clk 0:02:55]}  O-O {[%clk 0:02:54]} 5. e3 {[%clk 0:02:55]}  d5 {[%clk 0:02:53]} 6. Bd3 {[%clk 0:02:55]}  c5 {[%clk 0:02:53]} 7. Nge2 {[%clk 0:02:55]}  Nc6 {[%clk 0:02:53]} 8. Qd2 {[%clk 0:02:54]}  cxd4 {[%clk 0:02:45]} 9. exd4 {[%clk 0:02:55]}  Nb4 {[%clk 0:02:44]} 10. a3 {[%clk 0:02:51]}  Nxd3+ {[%clk 0:02:40]} 11. Qxd3 {[%clk 0:02:52]}  Bf5 {[%clk 0:02:40]} 12. Qd2 {[%clk 0:02:52]}  Rc8 {[%clk 0:02:39]} 13. Ng3 {[%clk 0:02:49]}  Qc7 {[%clk 0:02:27]} 14. Nxf5 {[%clk 0:02:48]}  gxf5 {[%clk 0:02:27]} 15. O-O {[%clk 0:02:45]}  Ne4 {[%clk 0:02:26]} 16. Nxe4 {[%clk 0:02:42]}  fxe4 {[%clk 0:02:26]} 17. Rac1 {[%clk 0:02:40]}  b5 {[%clk 0:02:26]} 18. f3 {[%clk 0:02:34]}  f5 {[%clk 0:02:23]} 19. c3 {[%clk 0:02:33]}  e6 {[%clk 0:02:22]} 20. fxe4 {[%clk 0:02:32]}  fxe4 {[%clk 0:02:22]} 21. Rxf8+ {[%clk 0:02:32]}  Rxf8 {[%clk 0:02:21]} 22. Qe2 {[%clk 0:02:31]}  Qf4 {[%clk 0:02:14]} 23. Rf1 {[%clk 0:02:25]}  Qxf1+ {[%clk 0:02:14]} 24. Qxf1 {[%clk 0:02:25]}  Rxf1+ {[%clk 0:02:14]} 25. Kxf1 {[%clk 0:02:26]}  Kf7 {[%clk 0:02:15]} 26. Ke2 {[%clk 0:02:27]}  h5 {[%clk 0:02:15]} 27. Ke3 {[%clk 0:02:23]}  Bh6+ {[%clk 0:02:13]} 28. Ke2 {[%clk 0:02:23]}  Kg6 {[%clk 0:02:14]} 29. a4 {[%clk 0:02:19]}  a6 {[%clk 0:02:11]} 30. axb5 {[%clk 0:02:19]}  axb5 {[%clk 0:02:11]} 31. Ba3 {[%clk 0:02:19]}  Kf5 {[%clk 0:02:11]} 32. Bd6 {[%clk 0:02:18]}  Bc1 {[%clk 0:02:03]} 33. Kd1 {[%clk 0:02:16]}  Be3 {[%clk 0:02:01]} 34. Ke2 {[%clk 0:02:14]}  Bg5 {[%clk 0:02:01]} 35. g3 {[%clk 0:02:11]}  Kg4 {[%clk 0:01:58]} 36. h4 {[%clk 0:02:08]}  Bf6 {[%clk 0:01:56]} 37. Ke3 {[%clk 0:02:06]}  Kf5 {[%clk 0:01:54]} 38. Bf4 {[%clk 0:02:03]}  e5 {[%clk 0:01:48]} 39. dxe5 {[%clk 0:02:02]}  Bxe5 {[%clk 0:01:49]} 40. Bxe5 {[%clk 0:01:13]}  Kxe5 {[%clk 0:01:44]} 41. Ke2 {[%clk 0:00:44]}  d4 {[%clk 0:01:43]} 42. cxd4+ {[%clk 0:00:42]}  Kxd4 {[%clk 0:01:43]} 43. Kd2 {[%clk 0:00:42]}  e3+ {[%clk 0:01:43]} 44. Ke2 {[%clk 0:00:42]}  Ke4 {[%clk 0:01:44]} 45. b4 {[%clk 0:00:42]}  Kd4 {[%clk 0:01:44]} 46. g4 {[%clk 0:00:28]}  hxg4 {[%clk 0:01:41]} 47. h5 {[%clk 0:00:29]}  g3 {[%clk 0:01:35]} 48. h6 {[%clk 0:00:29]}  g2 {[%clk 0:01:34]} 49. h7 {[%clk 0:00:29]}  g1=Q {[%clk 0:01:31]} 50. h8=Q+ {[%clk 0:00:30]}  Kc4 {[%clk 0:01:31]} 51. Qb2 {[%clk 0:00:18]}  Qf2+ {[%clk 0:01:30]} 52. Kd1 {[%clk 0:00:17]}  Qxb2 {[%clk 0:01:30]} 53. Ke1 {[%clk 0:00:16]}  Qd2+ {[%clk 0:01:29]} 54. Kf1 {[%clk 0:00:16]}  Qf2# {[%clk 0:01:30]} 0-1

[Event "January 9 Early 2024"]
[Site "https://www.chess.com"]
[Date "2024.01.11"]
[Round "2"]
[White "Franchini, Gabriele"]
[Black "Sztokbant, Bernardo Vainzoff"]
[Result "1-0"]
[Board "140"]
[TimeControl "180+1"]
[WhiteFideId "806790"]
[BlackFideId "2115956"]
[WhiteElo "2242"]
[BlackElo "2469"]
[WhiteTeam "ITA"]
[BlackTeam "BRA"]
[WhiteClock "0:00:25"]
[BlackClock "0:00:01"]

1. e4 {[%clk 0:03:00]}  c5 {[%clk 0:02:58]} 2. Nc3 {[%clk 0:03:00]}  Nc6 {[%clk 0:02:57]} 3. Bb5 {[%clk 0:02:59]}  d6 {[%clk 0:02:52]} 4. Bxc6+ {[%clk 0:02:59]}  bxc6 {[%clk 0:02:52]} 5. d3 {[%clk 0:02:59]}  e5 {[%clk 0:02:53]} 6. f4 {[%clk 0:02:57]}  exf4 {[%clk 0:02:37]} 7. Bxf4 {[%clk 0:02:58]}  Be6 {[%clk 0:02:28]} 8. Nf3 {[%clk 0:02:58]}  Be7 {[%clk 0:02:27]} 9. O-O {[%clk 0:02:58]}  Nf6 {[%clk 0:02:24]} 10. Ng5 {[%clk 0:02:52]}  Qd7 {[%clk 0:02:22]} 11. e5 {[%clk 0:02:36]}  dxe5 {[%clk 0:02:15]} 12. Bxe5 {[%clk 0:02:37]}  h6 {[%clk 0:02:11]} 13. Nxe6 {[%clk 0:02:34]}  Qxe6 {[%clk 0:02:10]} 14. Qf3 {[%clk 0:02:26]}  O-O {[%clk 0:02:00]} 15. Rae1 {[%clk 0:02:25]}  Qd7 {[%clk 0:01:56]} 16. Ne4 {[%clk 0:02:08]}  Ng4 {[%clk 0:01:36]} 17. Bc3 {[%clk 0:01:56]}  f5 {[%clk 0:01:36]} 18. Ng3 {[%clk 0:01:48]}  Bh4 {[%clk 0:01:32]} 19. Re2 {[%clk 0:01:37]}  f4 {[%clk 0:01:24]} 20. Nh5 {[%clk 0:01:27]}  Ne3 {[%clk 0:01:11]} 21. Bxg7 {[%clk 0:01:15]}  Rf5 {[%clk 0:00:51]} 22. Rxe3 {[%clk 0:01:09]}  Rxh5 {[%clk 0:00:26]} 23. Qxh5 {[%clk 0:00:57]}  fxe3 {[%clk 0:00:20]} 24. Bxh6 {[%clk 0:00:34]}  Bf2+ {[%clk 0:00:17]} 25. Kh1 {[%clk 0:00:34]}  Qf7 {[%clk 0:00:04]} 26. Qg4+ {[%clk 0:00:31]}  Kh7 {[%clk 0:00:03]} 27. Bxe3 {[%clk 0:00:29]}  Re8 {[%clk 0:00:02]} 28. Rxf2 {[%clk 0:00:26]}  Rxe3 {[%clk 0:00:01]} 29. Rxf7+ {[%clk 0:00:25]} 1-0

[Event "January 9 Early 2024"]
[Site "https://www.chess.com"]
[Date "2024.01.11"]
[Round "2"]
[White "Maksimovic, Bojan"]
[Black "Sanhueza, Cristian"]
[Result "1-0"]
[Board "147"]
[TimeControl "180+1"]
[WhiteFideId "14408120"]
[BlackFideId "116815"]
[WhiteElo "2907"]
[BlackElo "2596"]
[WhiteTeam "BIH"]
[BlackTeam "ARG"]
[WhiteClock "0:00:12"]
[BlackClock "0:00:14"]

1. e4 {[%clk 0:03:00]}  e5 {[%clk 0:02:57]} 2. Nf3 {[%clk 0:03:01]}  Nc6 {[%clk 0:02:46]} 3. Bb5 {[%clk 0:03:01]}  a6 {[%clk 0:02:41]} 4. Ba4 {[%clk 0:03:00]}  Nf6 {[%clk 0:02:39]} 5. O-O {[%clk 0:03:00]}  Nxe4 {[%clk 0:02:26]} 6. d4 {[%clk 0:02:59]}  exd4 {[%clk 0:02:25]} 7. Re1 {[%clk 0:02:46]}  d5 {[%clk 0:02:25]} 8. Nxd4 {[%clk 0:02:42]}  Bd6 {[%clk 0:02:26]} 9. Nxc6 {[%clk 0:02:37]}  Bxh2+ {[%clk 0:02:26]} 10. Kh1 {[%clk 0:02:37]}  Qh4 {[%clk 0:02:27]} 11. Rxe4+ {[%clk 0:02:37]}  dxe4 {[%clk 0:02:28]} 12. Qd8+ {[%clk 0:02:37]}  Qxd8 {[%clk 0:02:28]} 13. Nxd8+ {[%clk 0:02:38]}  Kxd8 {[%clk 0:02:29]} 14. Kxh2 {[%clk 0:02:38]}  Be6 {[%clk 0:02:30]} 15. c3 {[%clk 0:01:21]}  Ke7 {[%clk 0:02:17]} 16. Bf4 {[%clk 0:01:21]}  c6 {[%clk 0:02:11]} 17. Nd2 {[%clk 0:01:20]}  f5 {[%clk 0:02:08]} 18. f3 {[%clk 0:01:19]}  exf3 {[%clk 0:01:58]} 19. Nxf3 {[%clk 0:01:20]}  h6 {[%clk 0:01:56]} 20. Re1 {[%clk 0:01:17]}  Kf6 {[%clk 0:01:51]} 21. Be5+ {[%clk 0:01:14]}  Kf7 {[%clk 0:01:51]} 22. Nd4 {[%clk 0:00:44]}  Bxa2 {[%clk 0:01:12]} 23. Nxf5 {[%clk 0:00:44]}  Rad8 {[%clk 0:01:06]} 24. Nd6+ {[%clk 0:00:36]}  Kg6 {[%clk 0:00:54]} 25. Bc2+ {[%clk 0:00:34]}  Kh5 {[%clk 0:00:55]} 26. Kh3 {[%clk 0:00:18]}  Be6+ {[%clk 0:00:53]} 27. Kg3 {[%clk 0:00:10]}  Rhf8 {[%clk 0:00:17]} 28. Bf4 {[%clk 0:00:11]}  Rxf4 {[%clk 0:00:14]} 29. Kxf4 {[%clk 0:00:12]}  Rxd6 {[%clk 0:00:14]} 30. Rh1+ {[%clk 0:00:12]} 1-0

[Event "January 9 Early 2024"]
[Site "https://www.chess.com"]
[Date "2024.01.11"]
[Round "2"]
[White "Rozum, Ivan"]
[Black "Olsson, Linus"]
[Result "0-1"]
[Board "148"]
[TimeControl "180+1"]
[WhiteFideId "24104272"]
[BlackFideId "1706098"]
[WhiteElo "2662"]
[BlackElo "2513"]
[WhiteTeam "RUS"]
[BlackTeam "SWE"]
[WhiteClock "0:00:01"]
[BlackClock "0:00:39"]

1. b3 {[%clk 0:02:56]}  d6 {[%clk 0:02:58]} 2. Bb2 {[%clk 0:02:55]}  e5 {[%clk 0:02:58]} 3. c4 {[%clk 0:02:54]}  Nf6 {[%clk 0:02:57]} 4. g3 {[%clk 0:02:54]}  g6 {[%clk 0:02:57]} 5. Bg2 {[%clk 0:02:54]}  Bg7 {[%clk 0:02:58]} 6. d3 {[%clk 0:02:53]}  O-O {[%clk 0:02:58]} 7. Nf3 {[%clk 0:02:54]}  c6 {[%clk 0:02:55]} 8. O-O {[%clk 0:02:47]}  h6 {[%clk 0:02:55]} 9. e4 {[%clk 0:02:39]}  Nh7 {[%clk 0:02:46]} 10. d4 {[%clk 0:02:33]}  Nd7 {[%clk 0:02:35]} 11. Re1 {[%clk 0:02:32]}  Ng5 {[%clk 0:02:31]} 12. Nbd2 {[%clk 0:02:10]}  Qe7 {[%clk 0:02:27]} 13. Qc2 {[%clk 0:02:05]}  Ne6 {[%clk 0:02:19]} 14. d5 {[%clk 0:01:53]}  Nd4 {[%clk 0:02:19]} 15. Nxd4 {[%clk 0:01:48]}  exd4 {[%clk 0:02:20]} 16. b4 {[%clk 0:01:25]}  a5 {[%clk 0:02:15]} 17. a3 {[%clk 0:01:23]}  axb4 {[%clk 0:02:14]} 18. axb4 {[%clk 0:01:24]}  Rxa1 {[%clk 0:02:14]} 19. Bxa1 {[%clk 0:01:24]}  c5 {[%clk 0:02:14]} 20. Nb3 {[%clk 0:01:23]}  b6 {[%clk 0:02:10]} 21. f4 {[%clk 0:01:21]}  Re8 {[%clk 0:02:03]} 22. Bf3 {[%clk 0:01:19]}  h5 {[%clk 0:02:02]} 23. Kg2 {[%clk 0:01:17]}  Nf6 {[%clk 0:01:56]} 24. Re2 {[%clk 0:01:00]}  Bg4 {[%clk 0:01:49]} 25. h3 {[%clk 0:00:55]}  Bxf3+ {[%clk 0:01:48]} 26. Kxf3 {[%clk 0:00:56]}  Qd7 {[%clk 0:01:38]} 27. Kg2 {[%clk 0:00:53]}  h4 {[%clk 0:01:23]} 28. bxc5 {[%clk 0:00:30]}  bxc5 {[%clk 0:01:22]} 29. e5 {[%clk 0:00:31]}  Nh5 {[%clk 0:01:17]} 30. e6 {[%clk 0:00:30]}  Qe7 {[%clk 0:01:03]} 31. Nc1 {[%clk 0:00:10]}  hxg3 {[%clk 0:00:59]} 32. Nd3 {[%clk 0:00:10]}  fxe6 {[%clk 0:00:53]} 33. Rxe6 {[%clk 0:00:10]}  Qf7 {[%clk 0:00:52]} 34. Qe2 {[%clk 0:00:10]}  Rxe6 {[%clk 0:00:49]} 35. dxe6 {[%clk 0:00:11]}  Qb7+ {[%clk 0:00:45]} 36. Qf3 {[%clk 0:00:07]}  Qxf3+ {[%clk 0:00:41]} 37. Kxf3 {[%clk 0:00:08]}  Kf8 {[%clk 0:00:39]} 38. Ne1 {[%clk 0:00:01]}  Ke7 {[%clk 0:00:39]} 0-1

[Event "January 9 Early 2024"]
[Site "https://www.chess.com"]
[Date "2024.01.11"]
[Round "2"]
[White "Carow, Johannes"]
[Black "Paikens, Reinis"]
[Result "1-0"]
[Board "151"]
[TimeControl "180+1"]
[WhiteFideId "24692050"]
[BlackFideId "11624078"]
[WhiteElo "2712"]
[BlackElo "2257"]
[WhiteTeam "GER"]
[BlackTeam "LAT"]
[WhiteClock "0:00:15"]
[BlackClock "0:00:11"]

1. d4 {[%clk 0:03:00]}  d5 {[%clk 0:02:58]} 2. c4 {[%clk 0:03:00]}  c6 {[%clk 0:02:57]} 3. Nc3 {[%clk 0:03:00]}  Nf6 {[%clk 0:02:58]} 4. e3 {[%clk 0:03:00]}  e6 {[%clk 0:02:57]} 5. Nf3 {[%clk 0:03:00]}  Be7 {[%clk 0:02:58]} 6. Qc2 {[%clk 0:02:58]}  Nbd7 {[%clk 0:02:57]} 7. Bd3 {[%clk 0:02:58]}  dxc4 {[%clk 0:02:57]} 8. Bxc4 {[%clk 0:02:58]}  b5 {[%clk 0:02:58]} 9. Bd3 {[%clk 0:02:59]}  Bb7 {[%clk 0:02:58]} 10. e4 {[%clk 0:02:33]}  b4 {[%clk 0:02:58]} 11. Na4 {[%clk 0:02:33]}  Rc8 {[%clk 0:02:56]} 12. Be3 {[%clk 0:02:13]}  Qa5 {[%clk 0:02:52]} 13. Nd2 {[%clk 0:01:41]}  e5 {[%clk 0:01:56]} 14. Nc4 {[%clk 0:01:17]}  Qc7 {[%clk 0:01:44]} 15. dxe5 {[%clk 0:01:09]}  Ng4 {[%clk 0:01:35]} 16. f4 {[%clk 0:01:02]}  Nxe3 {[%clk 0:01:26]} 17. Nxe3 {[%clk 0:01:03]}  c5 {[%clk 0:01:23]} 18. Nd5 {[%clk 0:01:01]}  Qa5 {[%clk 0:01:16]} 19. b3 {[%clk 0:00:55]}  c4 {[%clk 0:00:49]} 20. Bxc4 {[%clk 0:00:48]}  Ba6 {[%clk 0:00:48]} 21. Nb2 {[%clk 0:00:41]}  Bc5 {[%clk 0:00:42]} 22. Bxa6 {[%clk 0:00:35]}  Qxa6 {[%clk 0:00:37]} 23. Nc4 {[%clk 0:00:34]}  O-O {[%clk 0:00:36]} 24. Rd1 {[%clk 0:00:32]}  Nb6 {[%clk 0:00:36]} 25. Ndxb6 {[%clk 0:00:30]}  axb6 {[%clk 0:00:36]} 26. Qe2 {[%clk 0:00:30]}  Ra8 {[%clk 0:00:32]} 27. Rd2 {[%clk 0:00:25]}  Rfd8 {[%clk 0:00:19]} 28. Nd6 {[%clk 0:00:26]}  Qa3 {[%clk 0:00:17]} 29. Qd1 {[%clk 0:00:19]}  f6 {[%clk 0:00:12]} 30. Rc2 {[%clk 0:00:15]}  fxe5 {[%clk 0:00:11]} 31. Qd5+ {[%clk 0:00:15]} 1-0

[Event "January 9 Early 2024"]
[Site "https://www.chess.com"]
[Date "2024.01.11"]
[Round "2"]
[White "Ranaldi, Lucas"]
[Black "Silva, Pedro Gil Ferreira Da"]
[Result "1-0"]
[Board "152"]
[TimeControl "180+1"]
[WhiteFideId "1519484"]
[BlackFideId "1946102"]
[WhiteElo "2685"]
[BlackElo "2395"]
[WhiteTeam "NOR"]
[BlackTeam "POR"]
[WhiteClock "0:00:08"]
[BlackClock "0:00:11"]

1. Nf3 {[%clk 0:03:00]}  Nf6 {[%clk 0:02:57]} 2. c4 {[%clk 0:03:00]}  c5 {[%clk 0:02:56]} 3. g3 {[%clk 0:03:00]}  g6 {[%clk 0:02:55]} 4. Bg2 {[%clk 0:03:00]}  Bg7 {[%clk 0:02:55]} 5. O-O {[%clk 0:03:01]}  O-O {[%clk 0:02:56]} 6. Nc3 {[%clk 0:03:01]}  d5 {[%clk 0:02:52]} 7. cxd5 {[%clk 0:03:01]}  Nxd5 {[%clk 0:02:53]} 8. Nxd5 {[%clk 0:02:57]}  Qxd5 {[%clk 0:02:54]} 9. d3 {[%clk 0:02:57]}  Qd6 {[%clk 0:02:50]} 10. Bf4 {[%clk 0:02:43]}  e5 {[%clk 0:02:49]} 11. Be3 {[%clk 0:02:43]}  Nc6 {[%clk 0:02:48]} 12. Nd2 {[%clk 0:02:43]}  b6 {[%clk 0:02:27]} 13. b4 {[%clk 0:02:05]}  cxb4 {[%clk 0:02:17]} 14. Rc1 {[%clk 0:02:04]}  Bd7 {[%clk 0:02:12]} 15. Qb3 {[%clk 0:01:23]}  Rac8 {[%clk 0:02:06]} 16. Ne4 {[%clk 0:01:16]}  Qe6 {[%clk 0:01:55]} 17. Qxe6 {[%clk 0:01:05]}  Bxe6 {[%clk 0:01:55]} 18. Nd6 {[%clk 0:01:03]}  Nd4 {[%clk 0:01:38]} 19. Nxc8 {[%clk 0:00:49]}  Nxe2+ {[%clk 0:01:37]} 20. Kh1 {[%clk 0:00:49]}  Nxc1 {[%clk 0:01:30]} 21. Ne7+ {[%clk 0:00:48]}  Kh8 {[%clk 0:01:30]} 22. Rxc1 {[%clk 0:00:48]}  Bxa2 {[%clk 0:01:31]} 23. Bd5 {[%clk 0:00:21]}  b3 {[%clk 0:01:30]} 24. Rc3 {[%clk 0:00:16]}  e4 {[%clk 0:01:06]} 25. d4 {[%clk 0:00:16]}  b5 {[%clk 0:01:05]} 26. Rc5 {[%clk 0:00:08]}  a6 {[%clk 0:01:00]} 27. Rc6 {[%clk 0:00:07]}  a5 {[%clk 0:01:00]} 28. Rc5 {[%clk 0:00:07]}  a4 {[%clk 0:00:27]} 29. Rxb5 {[%clk 0:00:08]}  Rd8 {[%clk 0:00:15]} 30. Bxf7 {[%clk 0:00:08]}  Bxd4 {[%clk 0:00:14]} 31. Nc6 {[%clk 0:00:08]}  Rf8 {[%clk 0:00:11]} 32. Bxd4# {[%clk 0:00:08]} 1-0

[Event "January 9 Early 2024"]
[Site "https://www.chess.com"]
[Date "2024.01.11"]
[Round "2"]
[White "Panda Sambit"]
[Black "Agrest, Inna"]
[Result "1-0"]
[Board "157"]
[TimeControl "180+1"]
[WhiteFideId "25091794"]
[BlackFideId "1708830"]
[WhiteElo "2581"]
[BlackElo "2343"]
[WhiteTeam "IND"]
[BlackTeam "SWE"]
[WhiteClock "0:01:02"]
[BlackClock "0:00:01"]

1. d4 {[%clk 0:03:00]}  Nf6 {[%clk 0:02:59]} 2. Nf3 {[%clk 0:02:54]}  g6 {[%clk 0:02:59]} 3. Bg5 {[%clk 0:02:52]}  Bg7 {[%clk 0:03:00]} 4. Nbd2 {[%clk 0:02:52]}  d6 {[%clk 0:02:46]} 5. e3 {[%clk 0:02:47]}  h6 {[%clk 0:02:44]} 6. Bh4 {[%clk 0:02:43]}  O-O {[%clk 0:02:44]} 7. Be2 {[%clk 0:02:41]}  Nbd7 {[%clk 0:02:25]} 8. O-O {[%clk 0:02:41]}  Qe8 {[%clk 0:02:25]} 9. Re1 {[%clk 0:02:38]}  e5 {[%clk 0:02:21]} 10. e4 {[%clk 0:02:35]}  Nh5 {[%clk 0:02:13]} 11. c3 {[%clk 0:02:33]}  Nf4 {[%clk 0:02:10]} 12. Bf1 {[%clk 0:02:32]}  exd4 {[%clk 0:01:48]} 13. cxd4 {[%clk 0:02:32]}  c5 {[%clk 0:01:47]} 14. Nc4 {[%clk 0:02:24]}  cxd4 {[%clk 0:01:28]} 15. Nxd4 {[%clk 0:02:23]}  g5 {[%clk 0:01:06]} 16. Bg3 {[%clk 0:02:17]}  Ne5 {[%clk 0:01:01]} 17. Nxd6 {[%clk 0:02:16]}  Qd8 {[%clk 0:00:56]} 18. N4f5 {[%clk 0:02:09]}  Bxf5 {[%clk 0:00:52]} 19. Nxf5 {[%clk 0:02:09]}  Re8 {[%clk 0:00:40]} 20. Nxg7 {[%clk 0:02:04]}  Kxg7 {[%clk 0:00:41]} 21. Qb3 {[%clk 0:01:58]}  Qe7 {[%clk 0:00:31]} 22. f3 {[%clk 0:01:55]}  Rac8 {[%clk 0:00:22]} 23. Bf2 {[%clk 0:01:54]}  b6 {[%clk 0:00:22]} 24. Rac1 {[%clk 0:01:53]}  Red8 {[%clk 0:00:20]} 25. Rcd1 {[%clk 0:01:50]}  Rxd1 {[%clk 0:00:17]} 26. Rxd1 {[%clk 0:01:50]}  Rd8 {[%clk 0:00:18]} 27. Rxd8 {[%clk 0:01:48]}  Qxd8 {[%clk 0:00:18]} 28. Qc3 {[%clk 0:01:49]}  f6 {[%clk 0:00:18]} 29. Bd4 {[%clk 0:01:43]}  Qd6 {[%clk 0:00:18]} 30. Be3 {[%clk 0:01:36]}  Ne6 {[%clk 0:00:17]} 31. Be2 {[%clk 0:01:34]}  Nc6 {[%clk 0:00:14]} 32. Bc4 {[%clk 0:01:32]}  Nf4 {[%clk 0:00:14]} 33. Bxf4 {[%clk 0:01:30]}  Qxf4 {[%clk 0:00:13]} 34. Bd5 {[%clk 0:01:30]}  Ne7 {[%clk 0:00:09]} 35. g3 {[%clk 0:01:26]}  Qd6 {[%clk 0:00:08]} 36. Qd4 {[%clk 0:01:26]}  Ng6 {[%clk 0:00:08]} 37. Kf2 {[%clk 0:01:26]}  Ne5 {[%clk 0:00:07]} 38. Qc3 {[%clk 0:01:19]}  Kg6 {[%clk 0:00:05]} 39. f4 {[%clk 0:01:17]}  Ng4+ {[%clk 0:00:05]} 40. Ke2 {[%clk 0:01:11]}  gxf4 {[%clk 0:00:04]} 41. Qf3 {[%clk 0:01:11]}  Ne5 {[%clk 0:00:03]} 42. Qxf4 {[%clk 0:01:10]}  Qc5 {[%clk 0:00:03]} 43. Qd2 {[%clk 0:01:06]}  Qb5+ {[%clk 0:00:02]} 44. Kf2 {[%clk 0:01:06]}  Qc5+ {[%clk 0:00:02]} 45. Kg2 {[%clk 0:01:06]}  h5 {[%clk 0:00:01]} 46. Be6 {[%clk 0:01:02]} 1-0